[Event "1st Bangalore GM-Open-A 2024"]
[Site "Bangalore"]
[Date "2024.01.20"]
[Round "4.7"]
[White "Thejkumar, M. S."]
[Black "Aronyak Ghosh"]
[Result "0-1"]
[ECO "E16"]
[WhiteElo "2372"]
[BlackElo "2541"]
[Annotator "TA"]
[PlyCount "112"]
[EventDate "2024.01.20"]
[EventType "swiss"]
[EventCountry "IND"]
[SourceTitle "playchess.com"]
[Source "ChessBase"]
[SourceQuality "1"]
[TimeControl "5400+30"]

{[%evp 11,112,21,38,12,22,16,33,36,8,25,32,41,37,18,60,6,32,-32,0,-16,-20,-19,-19,-21,-20,-8,-13,0,-15,-6,-10,-84,9,-39,-29,-41,-45,-83,-77,-85,-80,-114,-80,-83,-83,-78,-79,-76,-81,-89,-74,-82,-77,-78,-27,-31,-27,-40,-31,-45,-53,-52,-52,-52,-47,-70,-52,-45,-21,-51,-49,-72,-60,-91,-86,-69,-79,-91,-80,-80,-84,-84,-91,-77,-77,-77,-77,-212,-212,-284,-284,-318,-318,-318,-279,-464,-464,-460,-456,-431,-391,-451,-427]} 1. d4 {[%emt 0:00:10]} Nf6 {[%emt 0:00:43]} 2. c4 {[%emt 0:02:36]} e6 {[%emt 0:00:57]} 3. Nf3 {[%emt 0:00:35]} b6 {[%emt 0:00:54]} 4. g3 {[%emt 0:01:38]} Bb7 {[%emt 0:01:57]} 5. Bg2 {[%emt 0:00:19]} Bb4+ {[%emt 0:00:20]} 6. Bd2 {[%emt 0:00:48]} c5 {[%emt 0:00:55] 6...a5 gains popularity.} 7. d5 {[%emt 0:05:10] E16: Queen's Indian: 4 g3 Bb7 5 Bg2 Bb4+.} exd5 {[%emt 0:07:38]} 8. Nh4 {[%emt 0:00:31]} Qc7 {[%emt 0:28:21]} 9. O-O {[%emt 0:21:10] White is slightly better.} Bxd2 {[%emt 0:08:50]} (9... dxc4 $2 10. Bf4 d6 11. Bxd6 $16) 10. Qxd2 {[%emt 0:03:40] [#] Strongly threatening Qg5.} d4 $146 {[%emt 0:10:49]} ({Predecessor:} 10... Qe5 11. Nc3 Ne4 12. Qc2 Nxc3 13. bxc3 O-O 14. Rad1 Re8 15. Nf5 Na6 16. cxd5 g6 {½-½ Gareyev,T (2658)-Onischuk,A (2666) Washington op 1st 2012 (8)}) 11. Bxb7 {[%emt 0:02:31]} Qxb7 {[%emt 0:00:02]} 12. Nf5 {[%emt 0:00:54]} Kf8 {[%emt 0:00:09]} 13. Qf4 {[%emt 0:20:27]} (13. Qg5 $14 Rg8 14. e3) 13... Nc6 {[%emt 0:00:57][%cal Bb8c6,Bc6e7,Be7g6,Bg6e5][%mdl 32]} 14. Nd2 {[%emt 0:08:53]} (14. e3 $14) 14... Ne7 {[%emt 0:07:41]} 15. Nd6 {[%emt 0:09:08]} Qc6 {[%emt 0:01:20]} 16. N2e4 {[%emt 0:00:48]} Ng6 {[%emt 0:02:36]} 17. Qf5 {[%emt 0:00:17]} Ke7 {[%emt 0:05:11] With the idea ...Nxe4.} 18. e3 $1 {[%emt 0:04:53] Hoping for exd4.} Nxe4 {[%emt 0:00:45]} (18... d3 {feels hotter.} 19. Rad1 Nxe4 20. Nxe4 Qe6) 19. Nxe4 {[%emt 0:00:06] And now exd4 would win.} Qe6 {[%emt 0:00:43]} 20. Qf3 {[%emt 0:00:47] exd4 is the strong threat.} Ne5 $36 {[%emt 0:00:55][%mdl 2048] Black has some pressure.} (20... Qxc4 $2 21. exd4 Qxd4 22. Rad1 $18) 21. Qg2 {[%emt 0:01:21]} (21. Qf4 $1 $11 {keeps the balance.}) 21... d3 {[%emt 0:02:25] Black is more active.} ({Much weaker is} 21... Nxc4 22. exd4 Rhe8 23. Nxc5 $11) ({Black should try} 21... dxe3 $17 22. Rae1 exf2+ 23. Nxf2 f6) 22. Nc3 {[%emt 0:05:14]} (22. b3 $11 {was preferrable.}) 22... Qxc4 $15 {[%emt 0:02:06]} 23. f4 {[%emt 0:02:41]} Nc6 {[%emt 0:03:04]} 24. Rfd1 {[%emt 0:04:07]} Rhe8 {[%emt 0:02:13] aiming for ...Nb4.} 25. Rac1 {[%emt 0:01:11] Threatens to win with Nd5+.} Kf8 {[%emt 0:01:48]} 26. Nd5 {[%emt 0:01:11]} Qe4 {[%emt 0:00:07]} 27. Qxe4 {[%emt 0:00:14]} Rxe4 {[%emt 0:00:02]} 28. Rxd3 {[%emt 0:00:12]} Nb4 {[%emt 0:02:36]} 29. Nxb4 {[%emt 0:00:30]} Rxb4 $17 {[%emt 0:00:01][%mdl 4096] Endgame KRR-KRR} 30. b3 {[%emt 0:00:30]} Ke7 {[%emt 0:00:57]} 31. Rcd1 {[%emt 0:00:19]} Rd8 {[%emt 0:00:05]} 32. Kf2 {[%emt 0:00:25]} Re4 {[%emt 0:00:28]} ({Black should play} 32... d6 $17) 33. Kf3 $11 {[%emt 0:00:15]} Re6 {[%emt 0:00:08][%cal Be4e6,Be6c6,Bc6c4][%mdl 32]} 34. e4 {[%emt 0:00:23]} Rc6 {[%emt 0:00:22]} 35. g4 {[%emt 0:00:43]} c4 {[%emt 0:00:49]} 36. bxc4 {[%emt 0:00:11]} Rxc4 {[%emt 0:00:02]} 37. R1d2 {[%emt 0:00:34] Prevents Rc2.} h6 {[%emt 0:00:50][%cal Od7d5]} 38. h4 {[%emt 0:00:32]} Rc7 {[%emt 0:01:31]} (38... d5 $5 39. exd5 Kd6 $15) 39. f5 {[%emt 0:01:43]} d6 {[%emt 0:03:23]} 40. Kf4 {[%emt 0:00:49]} Rc1 {[%emt 0:00:14]} 41. g5 {[%emt 0:00:30]} Rf1+ {[%emt 0:00:46]} 42. Kg4 {[%emt 0:00:24]} Rg1+ {[%emt 0:00:57]} 43. Kf4 {[%emt 0:00:09]} h5 {[%emt 0:00:57]} 44. Kf3 {[%emt 0:00:14]} Rg4 {[%emt 0:00:33]} 45. e5 {[%emt 0:00:54][%cal Re5d6]} Rxh4 {[%emt 0:00:11]} 46. Rxd6 {[%emt 0:00:36]} Rxd6 {[%emt 0:00:19]} 47. Rxd6 $17 {[%emt 0:00:16] [#] KR-KR} Rg4 $1 {[%emt 0:02:11]} 48. f6+ {[%emt 0:01:02]} Ke8 {[%emt 0:00:10]} 49. Rc6 {[%emt 0:01:49] This move loses the game for White.} (49. fxg7 $17 {is the only way for White.} Rxg5 50. Rh6 Rxg7 51. Rxh5) 49... Rxg5 $19 {[%emt 0:00:36]} 50. fxg7 {[%emt 0:00:07]} Rxg7 {[%emt 0:01:24]} (50... Rxe5 {gets mated.} 51. g8=Q+ (51. g8=B Ra5 $14) 51... Ke7 52. Rc7+ Kf6 53. Qxf7+ Kg5 54. Qf4+ Kg6 55. Qxe5 h4 56. Rg7+ Kh6 57. Qg5#) 51. Rc7 {[%emt 0:00:14]} a5 {[%emt 0:01:01]} 52. e6 {[%emt 0:00:25]} Kf8 {[%emt 0:00:33]} 53. Rb7 $2 {[%emt 0:00:13]} (53. Rc6 Rg6 54. Rc8+ Ke7 55. exf7 Kxf7 56. Rc7+ Kg8 57. Rc8+ Kg7 58. Rd8) 53... fxe6 {[%emt 0:00:21]} 54. Rxb6 {[%emt 0:00:04]} Ke7 {[%emt 0:00:07]} 55. Rb5 {[%emt 0:00:14]} Rf7+ {[%emt 0:00:12]} 56. Ke4 {[%emt 0:01:24] [#]} Rf5 $1 {[%emt 0:00:04] Weighted Error Value: White=0.23 (precise) /Black=0.10 (very precise)} 0-1

[Event "1st Bangalore GM-Open-A 2024"]
[Site "Bangalore"]
[Date "2024.01.20"]
[Round "4.8"]
[White "Ram Aravind L N"]
[Black "Iniyan, Pa"]
[Result "0-1"]
[ECO "B94"]
[WhiteElo "2332"]
[BlackElo "2515"]
[Annotator "TA"]
[PlyCount "92"]
[EventDate "2024.01.20"]
[EventType "swiss"]
[EventCountry "IND"]
[SourceTitle "playchess.com"]
[Source "ChessBase"]
[SourceQuality "1"]
[TimeControl "5400+30"]

{[%evp 12,92,25,14,9,11,23,0,4,0,0,0,0,0,0,-28,-28,-24,5,8,0,0,0,0,-13,-4,-8,-6,-6,-8,0,-21,-24,-71,-56,-62,-68,-115,-120,-156,-86,-88,-96,-96,-96,-90,-90,-90,-94,-97,-96,-89,-93,-96,-104,-100,-81,-117,-117,-120,-115,-118,-118,-111,-106,-220,-225,-225,-215,-321,-280,-286,-266,-609,-590,-575,-535,-803,-785,-1000,-982,-944,-889]} 1. e4 {[%emt 0:05:01]} c5 {[%emt 0:00:36]} 2. Nf3 {[%emt 0:00:08]} d6 {[%emt 0:00:08]} 3. d4 {[%emt 0:00:17]} cxd4 {[%emt 0:00:12]} 4. Nxd4 {[%emt 0:00:22]} Nf6 {[%emt 0:01:31]} 5. Nc3 {[%emt 0:00:06]} a6 {[%emt 0:00:07]} 6. Bg5 {[%emt 0:00:51]} Nbd7 {[%emt 0:00:08]} 7. Bc4 {[%emt 0:00:52] 7.a3 is the recent fashion.} Qb6 {[%emt 0:00:13] B94: Sicilian Najdorf: 6 Bg5 Nbd7.} 8. Bb3 {[%emt 0:00:43]} e6 $1 {[%emt 0:00:11]} 9. Qd2 {[%emt 0:00:59]} Be7 {[%emt 0:00:11] The position is equal.} 10. O-O-O {[%emt 0:00:51]} Nc5 {[%emt 0:01:03]} 11. Rhe1 {[%emt 0:00:46][%cal Od4f5]} h6 {[%emt 0:03:31]} 12. Bh4 {[%emt 0:10:57][%cal Od4f5]} O-O {[%emt 0:01:46][%cal Of6e4]} 13. Bg3 {[%emt 0:09:11]} Rd8 {[%emt 0:08:15] [#]} 14. Qe2 $146 {[%emt 0:11:11]} ({Predecessor:} 14. f4 a5 15. a3 e5 16. Nf5 Bxf5 17. exf5 Nxb3+ 18. cxb3 Rac8 19. Kb1 Qxb3 20. Bh4 {0-1 Sai,V (2219)-Iniyan,P (2507) IND-ch 59th New Delhi 2022 (2)}) 14... Qa5 {[%emt 0:23:13]} 15. Kb1 {[%emt 0:03:38]} Bd7 {[%emt 0:00:23]} 16. f4 {[%emt 0:02:34]} b5 {[%emt 0:16:56] [#] Strongly threatening ...b4.} 17. e5 {[%emt 0:03:32]} dxe5 {[%emt 0:01:55]} 18. fxe5 {[%emt 0:00:04]} Nh7 {[%emt 0:00:08]} 19. Ne4 {[%emt 0:02:43]} Nxe4 {[%emt 0:03:22]} 20. Qxe4 {[%emt 0:00:05]} Qb6 {[%emt 0:00:11]} 21. Rf1 {[%emt 0:05:26]} Be8 {[%emt 0:09:20]} ({Much less strong is} 21... Ng5 22. Qf4 Be8 23. h4 $14) 22. Bf4 {[%emt 0:09:55]} (22. Bf2 $11) 22... a5 {[%emt 0:02:11] Hoping for ...a4.} ({Of course not} 22... Ng5 $6 23. Qe3 $15) 23. c3 {[%emt 0:01:43]} b4 {[%emt 0:00:13] White must now prevent ...bxc3.} 24. Bc2 {[%emt 0:01:23]} (24. Be3 $15 bxc3 25. Nxe6 {[%mdl 64] Discovered Attack} (25. bxc3 $2 {perishes.} Rab8 $19)) 24... Nf8 $17 {[%emt 0:00:08]} 25. c4 {[%emt 0:06:23] [#]} Rac8 {[%emt 0:03:32]} (25... a4 $142 $1 {[%cal Ob4b3]} 26. Be3 Bc5) 26. Be3 {[%emt 0:02:00][%cal Od4b5]} Rxc4 {[%emt 0:06:43]} 27. Bb3 {[%emt 0:04:14]} Rc5 {[%emt 0:00:07] And now ...a4 would win.} 28. Nf3 {[%emt 0:08:56]} Qc6 {[%emt 0:00:12]} 29. Qxc6 {[%emt 0:02:14]} Rxd1+ {[%emt 0:00:07]} 30. Rxd1 {[%emt 0:00:05]} Rxc6 {[%emt 0:00:05]} 31. Ba4 {[%emt 0:00:11]} Rc8 {[%emt 0:00:05]} 32. Bxe8 {[%emt 0:00:03]} Rxe8 {[%emt 0:00:08]} 33. b3 {[%emt 0:00:53]} Ra8 {[%emt 0:01:30]} 34. Nd4 {[%emt 0:03:43]} Bc5 {[%emt 0:00:29]} 35. Nc2 {[%emt 0:01:37]} Bxe3 {[%emt 0:00:04]} 36. Nxe3 {[%emt 0:00:02][%mdl 4096] Endgame KRN-KRN} Ng6 {[%emt 0:00:10]} 37. Nc4 {[%emt 0:00:09]} Nf4 {[%emt 0:00:05]} 38. Rd7 {[%emt 0:00:35]} (38. Rd2 $17) 38... Nxg2 $19 {[%emt 0:01:36]} 39. Nd6 {[%emt 0:00:05]} Rf8 {[%emt 0:00:28]} 40. Re7 {[%emt 0:04:39]} (40. Ra7 $142) 40... Ne3 {[%emt 0:01:16]} 41. Ra7 {[%emt 0:00:26]} f5 {[%emt 0:00:41][%cal Bf7f5,Bf5f4,Bf4f3][%mdl 32]} 42. Rxa5 $2 {[%emt 0:01:15]} (42. exf6 Rxf6 43. a4) 42... f4 {[%emt 0:00:15] Threatens to win with ...f3. Black is clearly winning.} 43. Ne4 {[%emt 0:00:02]} f3 {[%emt 0:01:58]} 44. Nf2 {[%emt 0:00:01]} Rc8 {[%emt 0:00:34] ...Rc2 is the strong threat.} 45. Ne4 {[%emt 0:01:05]} Rd8 {[%emt 0:00:50]} 46. Rc5 {[%emt 0:01:25]} Rd4 {[%emt 0:00:37] Weighted Error Value: White=0.36/Black=0.05 (flawless)} 0-1

[Event "1st Bangalore GM-Open-A 2024"]
[Site "Bangalore"]
[Date "2024.01.20"]
[Round "4.9"]
[White "Neelotpal, Das"]
[Black "Chanda, Sandipan"]
[Result "1/2-1/2"]
[ECO "A87"]
[WhiteElo "2329"]
[BlackElo "2486"]
[Annotator "RC"]
[PlyCount "268"]
[EventDate "2024.01.20"]
[EventType "swiss"]
[EventCountry "IND"]
[SourceTitle "playchess.com"]
[Source "ChessBase"]
[SourceQuality "1"]
[TimeControl "5400+30"]

1. d4 {[%emt 0:00:05]} f5 {[%emt 0:00:09]} 2. Nf3 {[%emt 0:01:01]} Nf6 {[%emt 0:00:08]} 3. c4 {[%emt 0:00:24]} g6 {[%emt 0:00:09]} 4. g3 {[%emt 0:00:18]} Bg7 {[%emt 0:00:07]} 5. Bg2 {[%emt 0:00:02]} O-O {[%emt 0:00:10]} 6. O-O {[%emt 0:00:13]} e6 {[%emt 0:00:04]} 7. Nc3 {[%emt 0:00:26]} d5 {[%emt 0:00:07]} 8. Bf4 {[%emt 0:02:27]} c6 {[%emt 0:00:09]} 9. Qc1 {[%emt 0:01:34]} Re8 {[%emt 0:00:16]} 10. Rd1 {[%emt 0:00:59]} Nbd7 {[%emt 0:00:13]} 11. Rb1 {[%emt 0:16:39]} a6 {[%emt 0:00:17]} 12. b4 {[%emt 0:04:34]} Nb6 {[%emt 0:00:20]} 13. Ne5 {[%emt 0:07:45]} Nxc4 {[%emt 0:00:16]} 14. Nxc4 {[%emt 0:00:19]} dxc4 {[%emt 0:00:07]} 15. a4 {[%emt 0:09:32]} Nd5 {[%emt 0:03:29]} 16. a5 {[%emt 0:02:04]} Nxf4 {[%emt 0:05:02]} 17. gxf4 {[%emt 0:02:57]} Qh4 {[%emt 0:00:17]} 18. Na4 {[%emt 0:03:06]} g5 {[%emt 0:00:57]} 19. fxg5 {[%emt 0:09:56]} Bxd4 {[%emt 0:01:41]} 20. e3 {[%emt 0:00:03]} Ba7 {[%emt 0:02:02]} 21. Nc5 {[%emt 0:05:58]} e5 {[%emt 0:07:06]} 22. f4 {[%emt 0:05:23]} Be6 {[%emt 0:05:14]} 23. Nxe6 {[%emt 0:04:14]} Rxe6 {[%emt 0:00:17]} 24. Qxc4 {[%emt 0:12:22]} Bxe3+ {[%emt 0:02:06]} 25. Kh1 {[%emt 0:00:02]} Rae8 {[%emt 0:00:11]} 26. Rd8 {[%emt 0:02:56]} Kg7 {[%emt 0:00:48]} 27. Rxe8 {[%emt 0:03:00]} Rxe8 {[%emt 0:00:05]} 28. Qd3 {[%emt 0:00:41]} Bxf4 {[%emt 0:01:29]} 29. Qd7+ {[%emt 0:00:13]} Kf8 {[%emt 0:00:06]} 30. Qxf5+ {[%emt 0:00:21]} Kg8 {[%emt 0:00:05]} 31. Bh3 {[%emt 0:01:29]} Qh5 {[%emt 0:05:38]} 32. Qd7 {[%emt 0:03:26]} Qf7 {[%emt 0:02:43]} 33. Rd1 {[%emt 0:00:02]} Bxg5 {[%emt 0:05:54]} 34. Qg4 {[%emt 0:00:57]} Kh8 {[%emt 0:03:14]} 35. Rd7 {[%emt 0:00:51]} Qg6 {[%emt 0:00:25]} 36. Rxb7 {[%emt 0:01:03]} e4 {[%emt 0:00:46]} 37. Bf1 {[%emt 0:00:32]} h5 {[%emt 0:03:50]} 38. Qg2 {[%emt 0:00:40]} e3 {[%emt 0:04:12]} 39. h4 {[%emt 0:00:47]} e2 {[%emt 0:09:31]} 40. Bxe2 {[%emt 0:00:11]} Qb1+ {[%emt 0:00:05]} 41. Qf1 {[%emt 0:00:51]} Qe4+ {[%emt 0:00:13]} 42. Qf3 {[%emt 0:00:19]} Qxh4+ {[%emt 0:00:39]} 43. Kg2 {[%emt 0:00:03]} Rg8 {[%emt 0:00:22]} 44. Kf1 {[%emt 0:00:40]} Bh6 {[%emt 0:00:33]} 45. Rf7 {[%emt 0:00:22]} Bd2 {[%emt 0:07:31]} 46. Qxh5+ {[%emt 0:00:48]} Qxh5 {[%emt 0:00:01]} 47. Bxh5 {[%emt 0:00:04]} Bxb4 {[%emt 0:00:06]} 48. Rc7 {[%emt 0:00:37]} Rg5 {[%emt 0:00:35]} 49. Be2 {[%emt 0:00:25]} Rxa5 {[%emt 0:00:29]} 50. Rxc6 {[%emt 0:00:05]} Rf5+ {[%emt 0:00:14]} 51. Kg2 {[%emt 0:00:13]} a5 {[%emt 0:00:04]} 52. Ra6 {[%emt 0:00:28]} Kg7 {[%emt 0:00:06]} 53. Bd3 {[%emt 0:00:22]} Rd5 {[%emt 0:00:16]} 54. Be4 {[%emt 0:00:14]} Rd2+ {[%emt 0:00:34]} 55. Kf3 {[%emt 0:00:05]} Kf7 {[%emt 0:00:07]} 56. Bf5 {[%emt 0:01:29]} Ke7 {[%emt 0:00:19]} 57. Ke4 {[%emt 0:00:40]} Ra2 {[%emt 0:00:37]} 58. Kd5 {[%emt 0:00:26]} a4 {[%emt 0:00:35]} 59. Bd3 {[%emt 0:00:56]} a3 {[%emt 0:00:20]} 60. Bc4 {[%emt 0:00:22]} Rd2+ {[%emt 0:00:15]} 61. Ke5 {[%emt 0:00:47]} Kd7 {[%emt 0:01:03]} 62. Ke4 {[%emt 0:00:52]} Bc5 {[%emt 0:00:50]} 63. Be6+ {[%emt 0:00:33]} Ke7 {[%emt 0:01:08]} 64. Bb3 {[%emt 0:00:16]} Rd4+ {[%emt 0:01:29]} 65. Ke5 {[%emt 0:00:22]} Rd3 {[%emt 0:00:51]} 66. Bc4 {[%emt 0:00:14]} Rd2 {[%emt 0:00:39]} 67. Ra5 {[%emt 0:00:36]} Bd4+ {[%emt 0:00:52]} 68. Kf5 {[%emt 0:00:46]} Bb2 {[%emt 0:00:16]} 69. Bb3 {[%emt 0:00:25]} Kd6 {[%emt 0:00:29]} 70. Ra8 {[%emt 0:00:38]} Kc5 {[%emt 0:00:07]} 71. Ke4 {[%emt 0:00:18]} Rd4+ {[%emt 0:00:33]} 72. Kf5 {[%emt 0:00:32]} Kb4 {[%emt 0:00:39]} 73. Be6 {[%emt 0:00:39]} Kc3 {[%emt 0:00:33]} 74. Rc8+ {[%emt 0:00:35]} Kd2 {[%emt 0:00:05]} 75. Ra8 {[%emt 0:00:33]} Kc2 {[%emt 0:00:25]} 76. Rg8 {[%emt 0:00:46]} Kb1 {[%emt 0:00:31]} 77. Rg1+ {[%emt 0:00:15]} Bc1 {[%emt 0:00:08]} 78. Rg2 {[%emt 0:00:31]} Rf4+ {[%emt 0:01:25]} 79. Ke5 {[%emt 0:00:15]} Rf1 {[%emt 0:00:06]} 80. Ba2+ {[%emt 0:00:38]} Ka1 {[%emt 0:00:02]} 81. Bc4 {[%emt 0:00:15]} Bb2+ {[%emt 0:00:17]} 82. Ke4 {[%emt 0:00:20]} Rc1 {[%emt 0:00:31]} 83. Bb3 {[%emt 0:00:48]} a2 {[%emt 0:00:14]} 84. Re2 {[%emt 0:00:47]} Kb1 {[%emt 0:00:24]} 85. Bxa2+ {[%emt 0:00:04]} Kxa2 {[%emt 0:00:02]} 86. Kd5 {[%emt 0:00:33]} Kb3 {[%emt 0:00:11]} 87. Rd2 {[%emt 0:00:34]} Bc3 {[%emt 0:00:21]} 88. Rd3 {[%emt 0:00:21]} Re1 {[%emt 0:00:05]} 89. Rh3 {[%emt 0:00:17]} Kb4 {[%emt 0:00:33]} 90. Rh7 {[%emt 0:00:19]} Re5+ {[%emt 0:00:18]} 91. Kd6 {[%emt 0:00:05]} Rg5 {[%emt 0:00:23]} 92. Rb7+ {[%emt 0:00:23]} Kc4 {[%emt 0:00:02]} 93. Rc7+ {[%emt 0:00:04]} Kd4 {[%emt 0:00:04]} 94. Kc6 {[%emt 0:00:35]} Ba5 {[%emt 0:00:48]} 95. Rh7 {[%emt 0:00:45]} Be1 {[%emt 0:01:10]} 96. Rh1 {[%emt 0:00:54]} Rc5+ {[%emt 0:00:10]} 97. Kb6 {[%emt 0:00:11]} Ba5+ {[%emt 0:01:33]} 98. Kb7 {[%emt 0:00:18]} Kc4 {[%emt 0:00:23]} 99. Rc1+ {[%emt 0:00:49]} Bc3 {[%emt 0:00:02]} 100. Rh1 {[%emt 0:00:58]} Kb5 {[%emt 0:01:13]} 101. Rh6 {[%emt 0:00:44]} Ba5 {[%emt 0:00:18]} 102. Rh7 {[%emt 0:00:37]} Bb6 {[%emt 0:00:17]} 103. Rg7 {[%emt 0:00:19]} Rd5 {[%emt 0:00:21]} 104. Rh7 {[%emt 0:00:15]} Rd2 {[%emt 0:00:17]} 105. Rh5+ {[%emt 0:00:18]} Bc5 {[%emt 0:00:04]} 106. Rh7 {[%emt 0:00:26]} Ra2 {[%emt 0:00:05]} 107. Rd7 {[%emt 0:00:13]} Ra6 {[%emt 0:00:06]} 108. Kc7 {[%emt 0:01:12]} Rc6+ {[%emt 0:00:29]} 109. Kb7 {[%emt 0:01:04]} Bd6 {[%emt 0:00:11]} 110. Ka7 {[%emt 0:00:38]} Ra6+ {[%emt 0:00:58]} 111. Kb7 {[%emt 0:00:04]} Bc5 {[%emt 0:01:16]} 112. Kc7 {[%emt 0:00:11]} Rc6+ {[%emt 0:02:29]} 113. Kb7 {[%emt 0:00:06]} Rb6+ {[%emt 0:00:33]} 114. Kc7 {[%emt 0:00:31]} Ra6 {[%emt 0:00:04]} 115. Kb7 {[%emt 0:00:33]} Bd6 {[%emt 0:00:13]} 116. Kc8 {[%emt 0:01:30]} Kc5 {[%emt 0:01:19]} 117. Rb7 {[%emt 0:00:45]} Kc6 {[%emt 0:01:37]} 118. Rc7+ {[%emt 0:00:06]} Kd5 {[%emt 0:00:03]} 119. Rb7 {[%emt 0:00:45]} Ke6 {[%emt 0:01:36]} 120. Rb5 {[%emt 0:00:14]} Ra7 {[%emt 0:00:05]} 121. Rb6 {[%emt 0:00:44]} Rc7+ {[%emt 0:02:11]} 122. Kb8 {[%emt 0:00:37]} Kd5 {[%emt 0:00:12]} 123. Ka8 {[%emt 0:00:39]} Rd7 {[%emt 0:02:42]} 124. Ra6 {[%emt 0:00:21]} Rd8+ {[%emt 0:02:39]} 125. Kb7 {[%emt 0:00:21]} Rb8+ {[%emt 0:00:07]} 126. Ka7 {[%emt 0:00:02]} Rb2 {[%emt 0:00:38]} 127. Ka8 {[%emt 0:00:19]} Ke6 {[%emt 0:03:03]} 128. Rc6 {[%emt 0:00:27]} Kd7 {[%emt 0:00:31]} 129. Rc4 {[%emt 0:00:50]} Rb5 {[%emt 0:01:44]} 130. Ra4 {[%emt 0:01:10]} Bc5 {[%emt 0:03:50]} 131. Ra6 {[%emt 0:00:27]} Rb1 {[%emt 0:01:53]} 132. Rh6 {[%emt 0:00:30]} Bd6 {[%emt 0:00:19]} 133. Rh7+ {[%emt 0:00:19]} Kc6 {[%emt 0:00:24]} 134. Rb7 {[%emt 0:00:11]} Bb4 {[%emt 0:00:14]} 1/2-1/2

[Event "1st Bangalore GM-Open-A 2024"]
[Site "Bangalore"]
[Date "2024.01.20"]
[Round "4.10"]
[White "Srihari L R"]
[Black "Aswath, S."]
[Result "1/2-1/2"]
[ECO "D45"]
[WhiteElo "2469"]
[BlackElo "2369"]
[Annotator "RC"]
[PlyCount "72"]
[EventDate "2024.01.20"]
[EventType "swiss"]
[EventCountry "IND"]
[SourceTitle "playchess.com"]
[Source "ChessBase"]
[SourceQuality "1"]
[TimeControl "5400+30"]

1. c4 {[%emt 0:01:46]} e6 {[%emt 0:00:16]} 2. Nf3 {[%emt 0:00:47]} d5 {[%emt 0:00:15]} 3. e3 {[%emt 0:00:47]} Nf6 {[%emt 0:00:37]} 4. Nc3 {[%emt 0:00:14]} c6 {[%emt 0:00:28]} 5. b3 {[%emt 0:00:10]} Nbd7 {[%emt 0:00:15]} 6. Bb2 {[%emt 0:00:45]} Bd6 {[%emt 0:00:37]} 7. d4 {[%emt 0:00:28]} O-O {[%emt 0:00:33]} 8. Qc2 {[%emt 0:01:08]} e5 {[%emt 0:00:16]} 9. Be2 {[%emt 0:00:53]} e4 {[%emt 0:00:09]} 10. Nd2 {[%emt 0:00:17]} Re8 {[%emt 0:00:24]} 11. g4 {[%emt 0:01:10]} Nf8 {[%emt 0:03:52]} 12. h3 {[%emt 0:27:14]} h6 {[%emt 0:01:49]} 13. O-O-O {[%emt 0:01:11]} Ng6 {[%emt 0:00:00]} 14. Rde1 {[%emt 0:11:23]} Nh4 {[%emt 0:00:08]} 15. Rhg1 {[%emt 0:00:20]} Bh2 {[%emt 0:05:08]} 16. Rh1 {[%emt 0:01:56]} Bd6 {[%emt 0:00:34]} 17. Rhg1 {[%emt 0:13:09]} Be6 {[%emt 0:05:28]} 18. Kb1 {[%emt 0:05:44]} Rc8 {[%emt 0:01:35]} 19. c5 {[%emt 0:03:28]} Bh2 {[%emt 0:01:06]} 20. Rh1 {[%emt 0:00:01]} Bc7 {[%emt 0:01:24]} 21. Rhg1 {[%emt 0:00:06]} Nh7 {[%emt 0:02:28]} 22. f4 {[%emt 0:02:33]} exf3 {[%emt 0:01:35]} 23. Nxf3 {[%emt 0:00:03]} Nxf3 {[%emt 0:00:57]} 24. Bxf3 {[%emt 0:00:02]} Qh4 {[%emt 0:00:57]} 25. Bg2 {[%emt 0:03:17]} Ng5 {[%emt 0:01:33]} 26. Ref1 {[%emt 0:07:36]} Ba5 {[%emt 0:30:58]} 27. Ne2 {[%emt 0:03:29]} Bd7 {[%emt 0:00:58]} 28. Bc1 {[%emt 0:00:07]} b6 {[%emt 0:04:56]} 29. Nf4 {[%emt 0:03:46]} bxc5 {[%emt 0:01:52]} 30. Qxc5 {[%emt 0:03:16]} Bb6 {[%emt 0:00:22]} 31. Qc2 {[%emt 0:00:05]} Ne4 {[%emt 0:01:03]} 32. Bxe4 {[%emt 0:01:18]} Rxe4 {[%emt 0:00:23]} 33. Qf2 {[%emt 0:00:18]} Qxf2 {[%emt 0:02:47]} 34. Rxf2 {[%emt 0:00:01]} Rce8 {[%emt 0:01:34]} 35. Nd3 {[%emt 0:01:36]} Bc8 {[%emt 0:01:29]} 36. Rc2 {[%emt 0:01:48]} R4e6 {[%emt 0:05:18]} 1/2-1/2